[Event "*** SCC Grand Prix: Titled Tuesday Blitz"]
[Site "Chess.com"]
[Date "2020.06.23"]
[Round "3"]
[White "JozefKneht"]
[Black "124chess"]
[Result "1/2-1/2"]
[WhiteElo "2444"]
[BlackElo "2714"]
[TimeControl "180+1"]
[EndTime "10:30:26 PDT"]
[Termination "Game drawn - insufficient material"]

1. e4 {[%clk 0:03:00.9]} 1... e6 {[%clk 0:03:00.9]} 2. d4 {[%clk 0:03:00.2]}
2... d5 {[%clk 0:03:01.8]} 3. Nc3 {[%clk 0:03:00.6]} 3... Bb4 {[%clk 0:03:01.5]}
4. e5 {[%clk 0:03:01]} 4... Ne7 {[%clk 0:03:01.5]} 5. a3 {[%clk 0:03:01.5]} 5...
Bxc3+ {[%clk 0:03:02.1]} 6. bxc3 {[%clk 0:03:02.4]} 6... b6 {[%clk 0:03:03]} 7.
Qg4 {[%clk 0:03:01.9]} 7... Ng6 {[%clk 0:03:03]} 8. h4 {[%clk 0:03:01.3]} 8...
h5 {[%clk 0:03:03.6]} 9. Qd1 {[%clk 0:03:01.2]} 9... c5 {[%clk 0:02:57.7]} 10.
Bg5 {[%clk 0:02:49.6]} 10... Qc7 {[%clk 0:02:51.3]} 11. Bd3 {[%clk 0:02:32.5]}
11... cxd4 {[%clk 0:02:41]} 12. cxd4 {[%clk 0:02:32]} 12... Qc3+ {[%clk
0:02:40.6]} 13. Kf1 {[%clk 0:02:31.5]} 13... Ba6 {[%clk 0:02:40.3]} 14. Bxa6
{[%clk 0:02:22.4]} 14... Nxa6 {[%clk 0:02:39.9]} 15. Ne2 {[%clk 0:02:22.5]}
15... Qc4 {[%clk 0:02:39.6]} 16. Rh3 {[%clk 0:02:22.3]} 16... O-O {[%clk
0:02:12.2]} 17. Rc3 {[%clk 0:02:18.7]} 17... Qa4 {[%clk 0:02:12.4]} 18. Ng3
{[%clk 0:01:54.3]} 18... Rac8 {[%clk 0:02:12.1]} 19. Rxc8 {[%clk 0:01:52]} 19...
Rxc8 {[%clk 0:02:13]} 20. Nxh5 {[%clk 0:01:45.5]} 20... Qxc2 {[%clk 0:02:12.4]}
21. Qxc2 {[%clk 0:01:44.5]} 21... Rxc2 {[%clk 0:02:13.3]} 22. Ng3 {[%clk
0:01:42.2]} 22... Nb8 {[%clk 0:02:06.4]} 23. h5 {[%clk 0:01:39.9]} 23... Nf8
{[%clk 0:02:05.7]} 24. Rc1 {[%clk 0:01:39.9]} 24... Rxc1+ {[%clk 0:02:05.5]} 25.
Bxc1 {[%clk 0:01:40]} 25... Nc6 {[%clk 0:02:06.2]} 26. Ne2 {[%clk 0:01:40.1]}
26... Nd7 {[%clk 0:02:06.2]} 27. g4 {[%clk 0:01:36.2]} 27... b5 {[%clk
0:02:06.6]} 28. f4 {[%clk 0:01:35.5]} 28... Nb6 {[%clk 0:02:06.4]} 29. Kf2
{[%clk 0:01:32.4]} 29... a5 {[%clk 0:02:06.7]} 30. Ke3 {[%clk 0:01:28.4]} 30...
b4 {[%clk 0:02:04.5]} 31. axb4 {[%clk 0:01:25.8]} 31... Nxb4 {[%clk 0:02:00.7]}
32. Nc3 {[%clk 0:01:23.9]} 32... Nc4+ {[%clk 0:02:00.2]} 33. Ke2 {[%clk
0:01:21.4]} 33... Nb6 {[%clk 0:01:29]} 34. Nb5 {[%clk 0:01:16.4]} 34... a4
{[%clk 0:01:23.3]} 35. Ba3 {[%clk 0:01:13.8]} 35... Nc6 {[%clk 0:01:12.1]} 36.
Kd3 {[%clk 0:01:12.7]} 36... Nc4 {[%clk 0:01:12.4]} 37. Bc5 {[%clk 0:01:10.6]}
37... Kh7 {[%clk 0:01:09.5]} 38. g5 {[%clk 0:01:05.4]} 38... N6a5 {[%clk
0:00:53.4]} 39. Kc3 {[%clk 0:00:59.4]} 39... Ne3 {[%clk 0:00:49.3]} 40. Kb4
{[%clk 0:00:57.5]} 40... Nac4 {[%clk 0:00:35.9]} 41. Kxa4 {[%clk 0:00:54.2]}
41... Ng2 {[%clk 0:00:36.1]} 42. Nd6 {[%clk 0:00:54.1]} 42... Nxf4 {[%clk
0:00:25.4]} 43. h6 {[%clk 0:00:34.8]} 43... gxh6 {[%clk 0:00:24.3]} 44. gxh6
{[%clk 0:00:34.5]} 44... Kxh6 {[%clk 0:00:24.8]} 45. Nxf7+ {[%clk 0:00:33.9]}
45... Kg6 {[%clk 0:00:24.6]} 46. Nd6 {[%clk 0:00:31.8]} 46... Ne3 {[%clk
0:00:22.6]} 47. Kb5 {[%clk 0:00:31]} 47... Nf5 {[%clk 0:00:20.1]} 48. Kc6 {[%clk
0:00:29.7]} 48... Ne2 {[%clk 0:00:20.6]} 49. Nb5 {[%clk 0:00:27.4]} 49... Ne3
{[%clk 0:00:17.3]} 50. Kd7 {[%clk 0:00:27.1]} 50... Nf4 {[%clk 0:00:14.6]} 51.
Nc7 {[%clk 0:00:26.4]} 51... Kf5 {[%clk 0:00:14.2]} 52. Nb5 {[%clk 0:00:24.9]}
52... Nc2 {[%clk 0:00:09.7]} 53. Nd6+ {[%clk 0:00:24.3]} 53... Kg6 {[%clk
0:00:10.1]} 54. Nb5 {[%clk 0:00:22.3]} 54... Ne3 {[%clk 0:00:10]} 55. Ke7 {[%clk
0:00:21.5]} 55... Nf5+ {[%clk 0:00:09.5]} 56. Kd7 {[%clk 0:00:21.6]} 56... Nh4
{[%clk 0:00:10.2]} 57. Ke7 {[%clk 0:00:21]} 57... Kg5 {[%clk 0:00:10.6]} 58. Kd7
{[%clk 0:00:21.9]} 58... Nhg6 {[%clk 0:00:10.8]} 59. Nc7 {[%clk 0:00:21.1]}
59... Kf5 {[%clk 0:00:10.8]} 60. Nb5 {[%clk 0:00:21.1]} 60... Ke4 {[%clk
0:00:11.2]} 61. Nc7 {[%clk 0:00:20.4]} 61... Kf5 {[%clk 0:00:11.4]} 62. Nb5
{[%clk 0:00:19.4]} 62... Nh4 {[%clk 0:00:12.3]} 63. Nc7 {[%clk 0:00:18.6]} 63...
Nf3 {[%clk 0:00:11.8]} 64. Nb5 {[%clk 0:00:17.9]} 64... Ke4 {[%clk 0:00:11.8]}
65. Nc7 {[%clk 0:00:17]} 65... Ng5 {[%clk 0:00:07.2]} 66. Nb5 {[%clk 0:00:16.7]}
66... Kf5 {[%clk 0:00:06.7]} 67. Ke7 {[%clk 0:00:16]} 67... Ng6+ {[%clk
0:00:06.6]} 68. Kd7 {[%clk 0:00:16.3]} 68... Ne4 {[%clk 0:00:05.6]} 69. Nd6+
{[%clk 0:00:14]} 69... Kf4 {[%clk 0:00:05.7]} 70. Nb5 {[%clk 0:00:13.5]} 70...
Nxe5+ {[%clk 0:00:04.8]} 71. dxe5 {[%clk 0:00:12.9]} 71... Nxc5+ {[%clk
0:00:04.7]} 72. Kd6 {[%clk 0:00:12.3]} 72... Nd3 {[%clk 0:00:04.9]} 73. Kxe6
{[%clk 0:00:12.4]} 73... Nxe5 {[%clk 0:00:05.3]} 74. Kxd5 {[%clk 0:00:11.9]}
1/2-1/2

[Event "*** SCC Grand Prix: Titled Tuesday Blitz"]
[Site "Chess.com"]
[Date "2020.06.23"]
[Round "3"]
[White "Logman74"]
[Black "allvim"]
[Result "1/2-1/2"]
[WhiteElo "2477"]
[BlackElo "2218"]
[TimeControl "180+1"]
[EndTime "10:30:28 PDT"]
[Termination "Game drawn by stalemate"]

1. e4 {[%clk 0:03:00.9]} 1... c5 {[%clk 0:02:59.5]} 2. Nf3 {[%clk 0:02:59.3]}
2... d6 {[%clk 0:02:59.8]} 3. d4 {[%clk 0:02:58.9]} 3... cxd4 {[%clk 0:03:00.7]}
4. Nxd4 {[%clk 0:02:58.9]} 4... Nf6 {[%clk 0:03:01.2]} 5. Nc3 {[%clk 0:02:58.8]}
5... a6 {[%clk 0:03:00.9]} 6. f4 {[%clk 0:02:57.1]} 6... e6 {[%clk 0:02:55.6]}
7. Bd3 {[%clk 0:02:56.1]} 7... Be7 {[%clk 0:02:56]} 8. O-O {[%clk 0:02:55.4]}
8... Qc7 {[%clk 0:02:56.5]} 9. Kh1 {[%clk 0:02:55.1]} 9... Nc6 {[%clk
0:02:56.2]} 10. Nf3 {[%clk 0:02:53]} 10... O-O {[%clk 0:02:55.9]} 11. Qe2 {[%clk
0:02:52.6]} 11... b5 {[%clk 0:02:55]} 12. e5 {[%clk 0:02:52.1]} 12... dxe5
{[%clk 0:02:42.9]} 13. fxe5 {[%clk 0:02:51.5]} 13... Nd5 {[%clk 0:02:40.4]} 14.
Nxd5 {[%clk 0:02:49.9]} 14... exd5 {[%clk 0:02:41.3]} 15. Bg5 {[%clk 0:02:34.5]}
15... Bg4 {[%clk 0:02:38.6]} 16. Bf4 {[%clk 0:02:25.7]} 16... Nd4 {[%clk
0:02:28]} 17. Qf2 {[%clk 0:02:13.9]} 17... Nxf3 {[%clk 0:02:26.5]} 18. gxf3
{[%clk 0:02:13.6]} 18... Be6 {[%clk 0:02:25.7]} 19. Rg1 {[%clk 0:02:11.3]} 19...
Bc5 {[%clk 0:02:01.8]} 20. Be3 {[%clk 0:02:08.7]} 20... Bxe3 {[%clk 0:01:58.8]}
21. Qxe3 {[%clk 0:02:07.9]} 21... f5 {[%clk 0:01:28]} 22. f4 {[%clk 0:01:52.1]}
22... d4 {[%clk 0:01:05.5]} 23. Qxd4 {[%clk 0:01:13.3]} 23... Rad8 {[%clk
0:00:55]} 24. Qf2 {[%clk 0:01:08.5]} 24... Bd5+ {[%clk 0:00:45]} 25. Rg2 {[%clk
0:01:08.1]} 25... Bxg2+ {[%clk 0:00:42.2]} 26. Qxg2 {[%clk 0:01:07.4]} 26... Qd7
{[%clk 0:00:38.7]} 27. a4 {[%clk 0:01:05.2]} 27... bxa4 {[%clk 0:00:29]} 28.
Bxa6 {[%clk 0:01:03.6]} 28... Qd4 {[%clk 0:00:20.7]} 29. e6 {[%clk 0:00:45.7]}
29... Rf6 {[%clk 0:00:14.2]} 30. Re1 {[%clk 0:00:38]} 30... Re8 {[%clk
0:00:13.5]} 31. Qc6 {[%clk 0:00:34.3]} 31... Re7 {[%clk 0:00:07.7]} 32. Bd3
{[%clk 0:00:17.3]} 32... h6 {[%clk 0:00:07.6]} 33. Qc8+ {[%clk 0:00:14.3]} 33...
Kh7 {[%clk 0:00:07.8]} 34. Qc6 {[%clk 0:00:13]} 34... Qxf4 {[%clk 0:00:07.6]}
35. Qd5 {[%clk 0:00:11.2]} 35... g6 {[%clk 0:00:04.7]} 36. Qd8 {[%clk
0:00:09.4]} 36... Qc7 {[%clk 0:00:03.7]} 37. Qxc7 {[%clk 0:00:08.6]} 37... Rxc7
{[%clk 0:00:04.6]} 38. e7 {[%clk 0:00:08.8]} 38... Rc8 {[%clk 0:00:04.7]} 39.
e8=Q {[%clk 0:00:07.8]} 39... Rxe8 {[%clk 0:00:05.4]} 40. Rxe8 {[%clk
0:00:07.9]} 40... Kg7 {[%clk 0:00:06]} 41. Re7+ {[%clk 0:00:08.3]} 41... Kf8
{[%clk 0:00:06]} 42. Ra7 {[%clk 0:00:08.7]} 42... f4 {[%clk 0:00:06.9]} 43. Bf1
{[%clk 0:00:08]} 43... g5 {[%clk 0:00:07.3]} 44. Kg1 {[%clk 0:00:08.2]} 44...
Rd6 {[%clk 0:00:07.7]} 45. Rxa4 {[%clk 0:00:08.3]} 45... Rd2 {[%clk 0:00:08.3]}
46. Rb4 {[%clk 0:00:08.7]} 46... Rxc2 {[%clk 0:00:08]} 47. Rb7 {[%clk
0:00:08.4]} 47... g4 {[%clk 0:00:07.1]} 48. Rb4 {[%clk 0:00:07.3]} 48... f3
{[%clk 0:00:07]} 49. Rxg4 {[%clk 0:00:06.8]} 49... Rxb2 {[%clk 0:00:07.6]} 50.
Rf4+ {[%clk 0:00:06.8]} 50... Kg7 {[%clk 0:00:08.4]} 51. Rxf3 {[%clk 0:00:07.2]}
51... Ra2 {[%clk 0:00:09]} 52. Rg3+ {[%clk 0:00:07.7]} 52... Kh7 {[%clk
0:00:08.2]} 53. Rg2 {[%clk 0:00:08.2]} 53... Rxg2+ {[%clk 0:00:07.7]} 54. Bxg2
{[%clk 0:00:08.1]} 54... Kg7 {[%clk 0:00:08.6]} 55. Kf2 {[%clk 0:00:08.6]} 55...
Kh8 {[%clk 0:00:08.8]} 56. Kg3 {[%clk 0:00:09.1]} 56... Kg7 {[%clk 0:00:09.7]}
57. Kg4 {[%clk 0:00:09.6]} 57... Kh8 {[%clk 0:00:10.6]} 58. Kh5 {[%clk
0:00:09.4]} 58... Kg7 {[%clk 0:00:11.5]} 59. Be4 {[%clk 0:00:08.3]} 59... Kh8
{[%clk 0:00:12.4]} 60. Kg6 {[%clk 0:00:08.4]} 60... Kg8 {[%clk 0:00:12.7]} 61.
Bf5 {[%clk 0:00:07.2]} 61... Kh8 {[%clk 0:00:13.6]} 62. Bg4 {[%clk 0:00:07]}
62... Kg8 {[%clk 0:00:13.9]} 63. Bh5 {[%clk 0:00:06.8]} 63... Kh8 {[%clk
0:00:14.8]} 64. Kxh6 {[%clk 0:00:06.9]} 64... Kg8 {[%clk 0:00:15.3]} 65. Bg6
{[%clk 0:00:06.9]} 65... Kh8 {[%clk 0:00:16.2]} 66. h4 {[%clk 0:00:07.1]} 66...
Kg8 {[%clk 0:00:16.8]} 67. h5 {[%clk 0:00:07.3]} 67... Kh8 {[%clk 0:00:17.7]}
68. Bf5 {[%clk 0:00:07.3]} 68... Kg8 {[%clk 0:00:18]} 69. Kg6 {[%clk 0:00:07.7]}
69... Kh8 {[%clk 0:00:18.3]} 70. Be4 {[%clk 0:00:07.8]} 70... Kg8 {[%clk
0:00:18.5]} 71. Kh6 {[%clk 0:00:05.7]} 71... Kh8 {[%clk 0:00:19.1]} 72. Bc6
{[%clk 0:00:05.4]} 72... Kg8 {[%clk 0:00:18.7]} 73. Be8 {[%clk 0:00:06]} 73...
Kh8 {[%clk 0:00:15.2]} 74. Bf7 {[%clk 0:00:06.2]} 1/2-1/2

[Event "*** SCC Grand Prix: Titled Tuesday Blitz"]
[Site "Chess.com"]
[Date "2020.06.23"]
[Round "3"]
[White "Bazarov04"]
[Black "Bulldog167"]
[Result "0-1"]
[WhiteElo "2508"]
[BlackElo "2775"]
[TimeControl "180+1"]
[EndTime "10:30:29 PDT"]
[Termination "Bulldog167 won on time"]

1. d4 {[%clk 0:03:00]} 1... Nf6 {[%clk 0:03:00.2]} 2. Nf3 {[%clk 0:02:59.2]}
2... d5 {[%clk 0:02:59.9]} 3. Bg5 {[%clk 0:02:59.5]} 3... Qd6 {[%clk 0:02:58.3]}
4. Nbd2 {[%clk 0:02:56.7]} 4... Bf5 {[%clk 0:02:52.7]} 5. e3 {[%clk 0:02:55.8]}
5... e6 {[%clk 0:02:52.9]} 6. Be2 {[%clk 0:02:54]} 6... Be7 {[%clk 0:02:47.8]}
7. O-O {[%clk 0:02:53.6]} 7... O-O {[%clk 0:02:48.1]} 8. c4 {[%clk 0:02:53.6]}
8... c6 {[%clk 0:02:47.8]} 9. a3 {[%clk 0:02:50.3]} 9... h6 {[%clk 0:02:47.7]}
10. Bf4 {[%clk 0:02:50.3]} 10... Qd8 {[%clk 0:02:47.7]} 11. Ne5 {[%clk
0:02:50.1]} 11... Nbd7 {[%clk 0:02:47.4]} 12. h3 {[%clk 0:02:50.3]} 12... Nxe5
{[%clk 0:02:47.3]} 13. Bxe5 {[%clk 0:02:51.2]} 13... a5 {[%clk 0:02:46.3]} 14.
Rc1 {[%clk 0:02:50.5]} 14... a4 {[%clk 0:02:46]} 15. Nf3 {[%clk 0:02:48.9]}
15... Ne4 {[%clk 0:02:45]} 16. Bd3 {[%clk 0:02:48.1]} 16... Nd6 {[%clk
0:02:40.7]} 17. Bxd6 {[%clk 0:02:46]} 17... Qxd6 {[%clk 0:02:41.1]} 18. Bxf5
{[%clk 0:02:45.8]} 18... exf5 {[%clk 0:02:42]} 19. cxd5 {[%clk 0:02:39.9]} 19...
Qxd5 {[%clk 0:02:42.9]} 20. Qc2 {[%clk 0:02:29.8]} 20... Bd6 {[%clk 0:02:27.5]}
21. Qc4 {[%clk 0:02:28.5]} 21... Qa5 {[%clk 0:02:24.1]} 22. Rfd1 {[%clk
0:02:25]} 22... Rfe8 {[%clk 0:02:24.2]} 23. Qd3 {[%clk 0:02:20.5]} 23... Qd5
{[%clk 0:02:21.3]} 24. Nd2 {[%clk 0:02:10.5]} 24... b5 {[%clk 0:02:11.7]} 25.
Nb1 {[%clk 0:02:02.5]} 25... Rab8 {[%clk 0:02:01.4]} 26. Nc3 {[%clk 0:02:02.2]}
26... Qb3 {[%clk 0:02:01.6]} 27. Qc2 {[%clk 0:01:59.5]} 27... Qe6 {[%clk
0:01:57.2]} 28. Ne2 {[%clk 0:01:57.2]} 28... Rbc8 {[%clk 0:01:54]} 29. Qd3
{[%clk 0:01:56.3]} 29... g6 {[%clk 0:01:44.7]} 30. d5 {[%clk 0:01:38.2]} 30...
cxd5 {[%clk 0:01:44.4]} 31. Qxb5 {[%clk 0:01:17.3]} 31... Rxc1 {[%clk
0:01:31.8]} 32. Rxc1 {[%clk 0:01:17.1]} 32... Rb8 {[%clk 0:01:31.6]} 33. Qxa4
{[%clk 0:01:01]} 33... Rxb2 {[%clk 0:01:31.6]} 34. Nd4 {[%clk 0:01:01.2]} 34...
Qe4 {[%clk 0:01:25]} 35. Qd7 {[%clk 0:00:48.9]} 35... Bxa3 {[%clk 0:00:53.2]}
36. Rf1 {[%clk 0:00:14.5]} 36... f4 {[%clk 0:00:43]} 37. Qc8+ {[%clk 0:00:07.1]}
37... Bf8 {[%clk 0:00:40]} 38. Qc3 {[%clk 0:00:08]} 38... Rb8 {[%clk 0:00:28.9]}
39. exf4 {[%clk 0:00:06.7]} 39... Qxf4 {[%clk 0:00:26]} 40. g3 {[%clk
0:00:06.9]} 40... Qe4 {[%clk 0:00:25.6]} 41. Re1 {[%clk 0:00:07.3]} 41... Rb1
{[%clk 0:00:24.4]} 42. Rxb1 {[%clk 0:00:06.2]} 42... Qxb1+ {[%clk 0:00:25.3]}
43. Kg2 {[%clk 0:00:06.6]} 43... Qe4+ {[%clk 0:00:25.8]} 44. Nf3 {[%clk
0:00:06.7]} 44... Bg7 {[%clk 0:00:23.9]} 45. Qd2 {[%clk 0:00:06.9]} 45... d4
{[%clk 0:00:20.2]} 46. Qd1 {[%clk 0:00:05.5]} 46... g5 {[%clk 0:00:20.1]} 47.
Kf1 {[%clk 0:00:05.4]} 47... f5 {[%clk 0:00:15.9]} 48. Qb3+ {[%clk 0:00:04.3]}
48... Kh7 {[%clk 0:00:15.7]} 49. Nd2 {[%clk 0:00:03]} 49... Qh1+ {[%clk
0:00:15.1]} 50. Ke2 {[%clk 0:00:03.4]} 50... Qxh3 {[%clk 0:00:15.9]} 51. Qe6
{[%clk 0:00:03.4]} 51... Qg4+ {[%clk 0:00:13.7]} 52. f3 {[%clk 0:00:03.8]} 52...
Qh3 {[%clk 0:00:12.9]} 53. g4 {[%clk 0:00:03.7]} 53... Qg2+ {[%clk 0:00:09.5]}
54. Kd3 {[%clk 0:00:03.3]} 54... fxg4 {[%clk 0:00:08.9]} 55. Qf5+ {[%clk
0:00:03.7]} 55... Kh8 {[%clk 0:00:09.2]} 56. Qc8+ {[%clk 0:00:03.9]} 56... Kh7
{[%clk 0:00:09.6]} 57. Qf5+ {[%clk 0:00:04.3]} 57... Kg8 {[%clk 0:00:10.3]} 58.
Qc8+ {[%clk 0:00:04.8]} 58... Bf8 {[%clk 0:00:10.4]} 59. Qe6+ {[%clk 0:00:05]}
59... Kh8 {[%clk 0:00:11]} 60. Qe5+ {[%clk 0:00:02.6]} 60... Bg7 {[%clk
0:00:10]} 61. Qe8+ {[%clk 0:00:03]} 61... Kh7 {[%clk 0:00:10.8]} 62. Qe4+ {[%clk
0:00:03.5]} 62... Kg8 {[%clk 0:00:11.7]} 63. Qe6+ {[%clk 0:00:03.7]} 63... Kf8
{[%clk 0:00:12.4]} 64. Qf5+ {[%clk 0:00:03.5]} 64... Ke7 {[%clk 0:00:12]} 65.
Qc5+ {[%clk 0:00:03.8]} 65... Ke6 {[%clk 0:00:12.4]} 66. Qc6+ {[%clk 0:00:03.5]}
66... Kf7 {[%clk 0:00:12.7]} 67. Qd5+ {[%clk 0:00:03.3]} 67... Kg6 {[%clk
0:00:13.3]} 68. Qe4+ {[%clk 0:00:02.7]} 68... Kh5 {[%clk 0:00:11.8]} 69. Qe8+
{[%clk 0:00:02.5]} 69... Kh4 {[%clk 0:00:12.3]} 0-1

[Event "*** SCC Grand Prix: Titled Tuesday Blitz"]
[Site "Chess.com"]
[Date "2020.06.23"]
[Round "3"]
[White "Borsuk_Konstantin"]
[Black "killer311"]
[Result "0-1"]
[WhiteElo "2577"]
[BlackElo "2408"]
[TimeControl "180+1"]
[EndTime "10:30:30 PDT"]
[Termination "killer311 won on time"]

1. d4 {[%clk 0:03:00.9]} 1... d5 {[%clk 0:02:59.8]} 2. c4 {[%clk 0:03:00.3]}
2... c6 {[%clk 0:02:58.8]} 3. Nc3 {[%clk 0:02:59.3]} 3... Nf6 {[%clk 0:02:58.4]}
4. e3 {[%clk 0:02:58.6]} 4... e6 {[%clk 0:02:57.6]} 5. Nf3 {[%clk 0:02:57.7]}
5... Nbd7 {[%clk 0:02:56.3]} 6. Qc2 {[%clk 0:02:58.1]} 6... Bd6 {[%clk 0:02:56]}
7. Be2 {[%clk 0:02:58.2]} 7... O-O {[%clk 0:02:55.1]} 8. O-O {[%clk 0:02:58.1]}
8... b6 {[%clk 0:02:55.3]} 9. cxd5 {[%clk 0:02:48.7]} 9... exd5 {[%clk
0:02:56.2]} 10. Bd3 {[%clk 0:02:34.1]} 10... Bb7 {[%clk 0:02:55.2]} 11. a3
{[%clk 0:02:31.3]} 11... Rc8 {[%clk 0:02:54]} 12. Bd2 {[%clk 0:02:29.4]} 12...
Re8 {[%clk 0:02:53.8]} 13. Be1 {[%clk 0:02:19.9]} 13... c5 {[%clk 0:02:50.3]}
14. dxc5 {[%clk 0:02:16.4]} 14... Nxc5 {[%clk 0:02:47.1]} 15. Bf5 {[%clk
0:02:15.4]} 15... Rc6 {[%clk 0:02:41.4]} 16. Nd4 {[%clk 0:02:13.5]} 16... Rc7
{[%clk 0:02:35.2]} 17. Ncb5 {[%clk 0:02:11.1]} 17... Rce7 {[%clk 0:02:35]} 18.
Nxd6 {[%clk 0:02:04]} 18... Qxd6 {[%clk 0:02:35.9]} 19. Rd1 {[%clk 0:01:49.3]}
19... g6 {[%clk 0:02:34.5]} 20. Bh3 {[%clk 0:01:47.3]} 20... a6 {[%clk
0:02:30.8]} 21. b4 {[%clk 0:01:40]} 21... Nce4 {[%clk 0:02:30.7]} 22. g3 {[%clk
0:01:33.1]} 22... Ng5 {[%clk 0:02:15.6]} 23. Bg2 {[%clk 0:01:32.3]} 23... Rc8
{[%clk 0:02:16.1]} 24. Qb2 {[%clk 0:01:17.9]} 24... Rec7 {[%clk 0:02:15.4]} 25.
f3 {[%clk 0:01:14.2]} 25... Qe5 {[%clk 0:02:07.2]} 26. f4 {[%clk 0:01:08.3]}
26... Qxe3+ {[%clk 0:02:00]} 27. Bf2 {[%clk 0:01:08.3]} 27... Qc3 {[%clk
0:01:53]} 28. Qxc3 {[%clk 0:01:07.5]} 28... Rxc3 {[%clk 0:01:53.9]} 29. fxg5
{[%clk 0:01:07.8]} 29... Ne4 {[%clk 0:01:53.5]} 30. a4 {[%clk 0:00:39.1]} 30...
R8c4 {[%clk 0:01:49.1]} 31. a5 {[%clk 0:00:30.4]} 31... Nxf2 {[%clk 0:01:45]}
32. Rxf2 {[%clk 0:00:29.4]} 32... Rxb4 {[%clk 0:01:45.1]} 33. axb6 {[%clk
0:00:29]} 33... Rxb6 {[%clk 0:01:46]} 34. Rc2 {[%clk 0:00:25.6]} 34... Rxc2
{[%clk 0:01:40.2]} 35. Nxc2 {[%clk 0:00:25.2]} 35... Rb2 {[%clk 0:01:41.1]} 36.
Ne3 {[%clk 0:00:24.8]} 36... d4 {[%clk 0:01:33.9]} 37. Rxd4 {[%clk 0:00:23.6]}
37... Bxg2 {[%clk 0:01:31.7]} 38. Nxg2 {[%clk 0:00:23]} 38... a5 {[%clk
0:01:30.7]} 39. Ra4 {[%clk 0:00:19.6]} 39... Rb1+ {[%clk 0:01:29]} 40. Kf2
{[%clk 0:00:19.3]} 40... Rb2+ {[%clk 0:01:29.4]} 41. Kf3 {[%clk 0:00:19.2]}
41... Rb3+ {[%clk 0:01:29.8]} 42. Ne3 {[%clk 0:00:19.3]} 42... Rb2 {[%clk
0:01:30.3]} 43. h4 {[%clk 0:00:19.1]} 43... Rb5 {[%clk 0:01:28.3]} 44. Nc4
{[%clk 0:00:14.6]} 44... Rb3+ {[%clk 0:01:28.4]} 45. Kg4 {[%clk 0:00:12.8]}
45... Kg7 {[%clk 0:01:27.3]} 46. Nxa5 {[%clk 0:00:12.8]} 46... Rc3 {[%clk
0:01:26]} 47. Nb7 {[%clk 0:00:11.6]} 47... Rc7 {[%clk 0:01:24.5]} 48. Nd6 {[%clk
0:00:11.2]} 48... Rd7 {[%clk 0:01:23.9]} 49. Ne4 {[%clk 0:00:11.4]} 49... Re7
{[%clk 0:01:21.5]} 50. Nf6 {[%clk 0:00:10.8]} 50... h5+ {[%clk 0:01:21.4]} 51.
Kh3 {[%clk 0:00:10.2]} 51... Re2 {[%clk 0:01:21.2]} 52. Ne4 {[%clk 0:00:09.1]}
52... Rc2 {[%clk 0:01:19.1]} 53. Nd6 {[%clk 0:00:06.9]} 53... Rd2 {[%clk
0:01:18.4]} 54. Nb5 {[%clk 0:00:06.2]} 54... Rb2 {[%clk 0:01:18]} 55. Nd4 {[%clk
0:00:06.3]} 55... Rf2 {[%clk 0:01:17.5]} 56. Ra7 {[%clk 0:00:05.3]} 56... Rd2
{[%clk 0:01:16.6]} 57. Nb5 {[%clk 0:00:04.9]} 57... Rb2 {[%clk 0:01:15.1]} 58.
Nc3 {[%clk 0:00:04.8]} 58... Rf2 {[%clk 0:01:15.1]} 59. Ne4 {[%clk 0:00:04.5]}
59... Re2 {[%clk 0:01:13.8]} 60. Ra4 {[%clk 0:00:04.9]} 60... Kg8 {[%clk
0:01:12.6]} 61. Nc3 {[%clk 0:00:02.3]} 61... Rc2 {[%clk 0:01:11.6]} 62. Nd5
{[%clk 0:00:02.6]} 62... Kg7 {[%clk 0:01:11.4]} 63. Nf4 {[%clk 0:00:03.2]} 63...
Rd2 {[%clk 0:01:10.7]} 64. Ra3 {[%clk 0:00:03.5]} 64... Rc2 {[%clk 0:01:10.5]}
65. Rf3 {[%clk 0:00:03.7]} 65... Rd2 {[%clk 0:01:10.5]} 66. Rf1 {[%clk
0:00:04.2]} 66... Rc2 {[%clk 0:01:10.5]} 67. Rg1 {[%clk 0:00:04.8]} 67... Rd2
{[%clk 0:01:10.5]} 68. Rg2 {[%clk 0:00:05.3]} 68... Rd1 {[%clk 0:01:09.7]} 69.
g4 {[%clk 0:00:05]} 69... Rf1 {[%clk 0:01:08]} 70. Ne2 {[%clk 0:00:05]} 70...
hxg4+ {[%clk 0:01:06.9]} 71. Kxg4 {[%clk 0:00:04.4]} 71... Ra1 {[%clk
0:01:07.8]} 72. Nf4 {[%clk 0:00:04.5]} 72... Ra4 {[%clk 0:01:07.9]} 73. Re2
{[%clk 0:00:04.5]} 73... Rb4 {[%clk 0:01:07.7]} 74. Rc2 {[%clk 0:00:04.2]} 74...
Ra4 {[%clk 0:01:07.4]} 75. Rc6 {[%clk 0:00:04.3]} 75... Rb4 {[%clk 0:01:07.2]}
76. Rf6 {[%clk 0:00:04.7]} 76... Ra4 {[%clk 0:01:07]} 77. h5 {[%clk 0:00:04.6]}
77... gxh5+ {[%clk 0:01:05.9]} 78. Kxh5 {[%clk 0:00:05.5]} 78... Rb4 {[%clk
0:01:04.8]} 79. Ng2 {[%clk 0:00:05.4]} 79... Rb2 {[%clk 0:01:04.5]} 80. Nh4
{[%clk 0:00:05.6]} 80... Rh2 {[%clk 0:01:04.2]} 81. Rb6 {[%clk 0:00:05.5]} 81...
Rh1 {[%clk 0:01:03.9]} 82. Rb7 {[%clk 0:00:05.3]} 82... Rf1 {[%clk 0:01:02.5]}
83. Kg4 {[%clk 0:00:05.2]} 83... Rg1+ {[%clk 0:01:02.5]} 84. Kf4 {[%clk
0:00:05.2]} 84... Rf1+ {[%clk 0:01:02.6]} 85. Nf3 {[%clk 0:00:05.7]} 85... Kg6
{[%clk 0:01:01.1]} 86. Rb6+ {[%clk 0:00:05.6]} 86... Kg7 {[%clk 0:01:01.4]} 87.
Rf6 {[%clk 0:00:06.1]} 87... Rf2 {[%clk 0:01:00.8]} 88. Kf5 {[%clk 0:00:05.5]}
88... Rxf3+ {[%clk 0:01:00.4]} 89. Ke5 {[%clk 0:00:05.7]} 89... Rxf6 {[%clk
0:01:00.3]} 90. gxf6+ {[%clk 0:00:05.7]} 90... Kg6 {[%clk 0:01:01.2]} 91. Kf4
{[%clk 0:00:05.8]} 91... Kxf6 {[%clk 0:01:01.5]} 0-1